fUST/lending_fUST_20240102
["ID","MTS","AMOUNT","RATE_DAILY","PERIOD"]
[309792809,1704135046270,-1037.28834325,0.00042689,4]
[309792834,1704135834446,-400000.0,0.00046071,30]
[309792926,1704136234643,-399.15407367,0.00027961,2]
[309792927,1704136234654,-1064.34206843,0.00027961,2]
[309792928,1704136234665,-593.46742734,0.00027962,2]
[309792929,1704136234676,-154.87609912,0.00027963,2]
[309792930,1704136234685,-2697.45131281,0.00027963,5]
[309792931,1704136234694,-178.37917647,0.00027964,2]
[309792932,1704136234705,-196.25235172,0.00027964,2]
[309792933,1704136234716,-156.59282914,0.00027964,2]
[309792961,1704136238414,-2210.2830292,0.00027964,2]
[309793114,1704136243368,-2333.91305272,0.00027964,2]
[309793115,1704136243378,-1616.90079488,0.00027998,2]
[309793131,1704136246243,-250.55060294,0.00027963,2]
[309793132,1704136246378,-622.72804727,0.00027963,2]
[309793133,1704136246389,-668.10373566,0.00027998,2]
[309793134,1704136246398,-200.0,0.00030769,15]
[309793135,1704136246408,-280.0,0.00033846,15]
[309793136,1704136246418,-10215.1023856,0.00033884,2]
[309793137,1704136246428,-200.0,0.00033956,2]
[309793138,1704136246438,-1000.0,0.00034,7]
[309793139,1704136246448,-14165.05621972,0.00036,4]
[309793140,1704136246461,-851.49034209,0.00036,4]
[309793323,1704137438531,-253.03689703,0.00025801,2]
[309793325,1704137438540,-154.87609912,0.00025801,2]
[309793327,1704137438550,-156.48322816,0.00025801,2]
[309793329,1704137438559,-943.79443279,0.00025802,2]
[309793331,1704137438568,-154.87609912,0.00025802,2]
[309793333,1704137438577,-437.81819232,0.00025802,2]
[309793335,1704137438589,-435.46045789,0.00025802,2]
[309793337,1704137438598,-1064.34206843,0.00025802,2]
[309793339,1704137438607,-870.68789666,0.00025803,2]
[309793341,1704137438617,-293.82215808,0.00025803,2]
[309793344,1704137438628,-360.01037887,0.00025803,2]
[309793346,1704137438639,-435.3,0.00025804,3]
[309793348,1704137438648,-141.7591473,0.00025804,3]
[309793350,1704137438660,-220.9908527,0.00025804,3]
[309793352,1704137438670,-154.87609912,0.00025807,2]
[309793354,1704137438679,-3628.4102183,0.00025807,2]
[309793356,1704137438695,-270.72394444,0.00025807,2]
[309793358,1704137438704,-328.14293882,0.00025807,2]
[309793359,1704137438713,-4778.86931745,0.00025808,2]
[309793360,1704137438722,-899.892,0.00025808,2]
[309793361,1704137438731,-154.87609912,0.00025808,2]
[309793362,1704137438740,-196.25235172,0.00025809,2]
[309793363,1704137438750,-4700.78891106,0.00025809,2]
[309793364,1704137438759,-230.0137314,0.00025809,2]
[309793365,1704137438768,-15849.01373132,0.00025809,2]
[309793366,1704137438777,-3731.01777703,0.00025809,2]
[309793367,1704137438786,-612.61636559,0.0002581,2]
[309793368,1704137438795,-851.81467386,0.0002581,2]
[309793369,1704137438804,-245.49702411,0.0002581,2]
[309793370,1704137438813,-1037.00033896,0.0002581,2]
[309793371,1704137438822,-593.46742734,0.0002581,2]
[309793373,1704137438831,-154.87609912,0.0002581,2]
[309793374,1704137438840,-156.51769097,0.00025811,2]
[309793376,1704137438850,-164.57325592,0.00025812,2]
[309793378,1704137438860,-245.44220656,0.00025812,2]
[309793380,1704137438869,-2047.05701193,0.00025812,2]
[309793382,1704137438879,-321.76626595,0.00025812,2]
[309793384,1704137438888,-3000.0,0.00025812,2]
[309793386,1704137438898,-292.84663046,0.00025813,2]
[309793388,1704137438907,-9896.05802049,0.00025813,2]
[309793390,1704137438916,-500.0,0.00025813,2]
[309793392,1704137438930,-180.83399236,0.00025813,2]
[309793394,1704137438939,-316.99418714,0.00025813,2]
[309793396,1704137438948,-500.0,0.00025813,2]
[309793398,1704137438957,-166.94378079,0.00025813,2]
[309793400,1704137438966,-208.295393,0.00025851,2]
[309793402,1704137438976,-524.67872739,0.00026,2]
[309793404,1704137438985,-11606.21636594,0.00026897,2]
[309793406,1704137438994,-500.0,0.00026904,4]
[309793408,1704137439003,-500.0,0.00026904,4]
[309793410,1704137439012,-462.1928389,0.00026904,4]
[309793412,1704137439021,-500.0,0.00026904,4]
[309793414,1704137439030,-500.0,0.00026904,4]
[309793416,1704137439040,-500.0,0.00026904,4]
[309793418,1704137439050,-226.94250886,0.00026904,4]
[309793420,1704137439059,-514.83449036,0.00026904,4]
[309793422,1704137439068,-500.0,0.00026904,4]
[309793424,1704137439077,-500.0,0.00026904,4]
[309793426,1704137439086,-500.0,0.00026904,4]
[309793428,1704137439096,-153.37554505,0.00026904,4]
[309793430,1704137439105,-500.0,0.00026904,4]
[309793432,1704137439114,-500.0,0.00026904,4]
[309793434,1704137439124,-457.28283367,0.00026904,4]
[309793436,1704137439133,-500.0,0.00026904,4]
[309793438,1704137439142,-500.0,0.00026904,4]
[309793440,1704137439151,-500.0,0.00026904,4]
[309793442,1704137439161,-500.0,0.00026904,4]
[309793444,1704137439170,-500.0,0.00026904,4]
[309793446,1704137439179,-500.0,0.00026904,4]
[309793448,1704137439188,-500.0,0.00026904,4]
[309793450,1704137439197,-500.0,0.00026904,4]
[309793452,1704137439207,-16276.53508302,0.00026906,2]
[309793454,1704137439216,-154.87609912,0.00027961,2]
[309793457,1704137439225,-2054.20271864,0.00027962,2]
[309793459,1704137439235,-200.0,0.00028405,15]
[309793460,1704137439244,-13760.65275064,0.00029,2]
[309793463,1704137439254,-638.08762863,0.0003,4]
[309793465,1704137439264,-203.0,0.0003,2]
[309793467,1704137439274,-150.87929656,0.00030692,120]
[309793469,1704137439284,-280.0,0.00031246,15]
[309793471,1704137439293,-150.87929656,0.00031319,30]
[309793473,1704137439303,-150.87929656,0.00031958,7]
[309793475,1704137439312,-984.26645117,0.00032,2]
[309793477,1704137439321,-150.87929656,0.0003261,4]
[309793479,1704137439330,-375.20783559,0.00032876,7]
[309793481,1704137439339,-500.0,0.00032876,7]
[309793483,1704137439348,-203.0,0.00033,2]
[309793485,1704137439357,-150.87929656,0.00033276,2]
[309793487,1704137439366,-176.51777987,0.000339,2]
[309793489,1704137439375,-1000.0,0.00034,7]
[309793491,1704137439383,-391.0,0.0003437,15]
[309793493,1704137439392,-2775.76683065,0.00035,4]
[309793495,1704137439401,-154.87609912,0.00035,4]
[309793497,1704137439410,-155.0,0.00035197,2]
[309793499,1704137439419,-535.0,0.00035452,2]
[309793501,1704137439428,-973.30592,0.00035616,120]
[309793503,1704137439437,-151.0,0.00035844,4]
[309793505,1704137439446,-203.0,0.00035998,2]
[309793507,1704137439455,-3367.5606712,0.00035998,4]
[309793509,1704137439464,-1208.40884418,0.00035998,4]
[309793511,1704137439473,-2334.19339693,0.00035998,2]
[309793513,1704137439483,-524.56253249,0.00035998,4]
[309793515,1704137439492,-155.20689925,0.00035998,4]
[309793517,1704137439501,-274.05362151,0.00035998,4]
[309793519,1704137439510,-300.65316318,0.00035998,4]
[309793521,1704137439519,-7921.34168169,0.00035998,2]
[309793523,1704137439528,-4838.34667316,0.00035999,2]
[309793524,1704137439537,-303.146195,0.00036,2]
[309793526,1704137439546,-4545.33506961,0.00036,4]
[309793528,1704137439555,-532.43073467,0.00036,2]
[309793530,1704137439565,-28484.00066456,0.00036,4]
[309793532,1704137439574,-203.0,0.00036,2]
[309793534,1704137439583,-585.58900286,0.00036195,4]
[309793536,1704137439592,-212.49909782,0.00036195,4]
[309793538,1704137439601,-4801.01300755,0.00036195,4]
[309793540,1704137439610,-2030.51263553,0.00036195,4]
[309793542,1704137439619,-2988.35569045,0.00036196,4]
[309793544,1704137439629,-470.03226476,0.00036196,4]
[309793546,1704137439639,-13665.60746403,0.00036196,4]
[309793549,1704137439649,-2025.89489209,0.00036196,4]
[309793550,1704137439659,-500.0,0.00036196,7]
[309793553,1704137439668,-198.08264524,0.00036196,7]
[309793556,1704137439690,-217.96212525,0.00036196,7]
[309793558,1704137439700,-511.12586777,0.00036196,7]
[309793560,1704137439709,-500.0,0.00036196,7]
[309793562,1704137439719,-436.16550532,0.00036196,7]
[309793564,1704137439728,-500.0,0.00036196,7]
[309793566,1704137439738,-500.0,0.00036196,7]
[309793568,1704137439747,-500.0,0.00036196,7]
[309793570,1704137439757,-500.0,0.00036196,7]
[309793572,1704137439767,-500.0,0.00036196,7]
[309793574,1704137439777,-500.0,0.00036196,7]
[309793576,1704137439787,-500.0,0.00036196,7]
[309793578,1704137439796,-500.0,0.00036196,7]
[309793580,1704137439806,-500.0,0.00036196,7]
[309793582,1704137439815,-500.0,0.00036196,7]
[309793584,1704137439825,-500.0,0.00036196,7]
[309793586,1704137439835,-240.03165879,0.00036196,7]
[309793588,1704137439844,-65280.20829054,0.00036197,2]
[309793590,1704137439854,-155.0,0.00036567,2]
[309793592,1704137439864,-5969.55963664,0.00036898,4]
[309793594,1704137439873,-150.87929656,0.00036973,2]
[309793597,1704137439883,-250.29064748,0.00036973,2]
[309793599,1704137439893,-417.94666028,0.00037,7]
[309793601,1704137439902,-301.75859313,0.00037594,4]
[309793603,1704137439912,-299.365,0.00037648,2]
[309793604,1704137439921,-151.0,0.00037689,7]
[309793607,1704137439930,-5242.41867961,0.00037796,4]
[309793608,1704137439940,-155.11386267,0.00037796,4]
[309793611,1704137439949,-973.72829112,0.00037796,2]
[309793612,1704137439960,-200.0,0.00037807,15]
[309793615,1704137439970,-348.0,0.00037807,15]
[309793617,1704137439980,-155.0,0.00037937,2]
[309793619,1704137439989,-151.0,0.00037939,2]
[309793621,1704137439998,-151.0,0.00037939,2]
[309793623,1704137440008,-1364.439554,0.00037939,2]
[309793625,1704137440018,-1364.439554,0.00037939,2]
[309793627,1704137440027,-151.0,0.00037939,2]
[309793640,1704137440137,-3701.05504874,0.00037939,2]
[309793642,1704137440146,-194.79237098,0.00037939,2]
[309793644,1704137440155,-50000.0,0.00037939,2]
[309793646,1704137440164,-871.26099584,0.00037939,2]
[309793648,1704137440173,-770.06176838,0.00037939,2]
[309793650,1704137440182,-1066.94,0.0003794,2]
[309793652,1704137440191,-1502.98059705,0.00038,120]
[309793654,1704137440200,-603.51718625,0.00038226,7]
[309793656,1704137440209,-645.53890539,0.00038275,2]
[309793658,1704137440220,-500.0,0.00038356,2]
[309793660,1704137440229,-500.0,0.00038356,2]
[309793662,1704137440238,-364.59668553,0.0003863,2]
[309793664,1704137440247,-585.0,0.0003874,2]
[309793666,1704137440257,-208.295393,0.00038776,2]
[309793668,1704137440266,-3110.37038557,0.000388,2]
[309793669,1704137440275,-578.0554099,0.000388,45]
[309793671,1704137440285,-166.86043165,0.00038869,4]
[309793672,1704137440294,-176.51777987,0.000389,2]
[309793673,1704137440304,-203.0,0.00038998,2]
[309793674,1704137440313,-2030.87148556,0.00039,2]
[309793675,1704137440322,-154.87609912,0.00039,4]
[309793676,1704137440331,-4910.31043611,0.00039,4]
[309793677,1704137440340,-203.0,0.00039,2]
[309793678,1704137440350,-1207.0343725,0.00039194,30]
[309793679,1704137440359,-607.53,0.000393,60]
[309793680,1704137440368,-155.0,0.00039307,2]
[309793681,1704137440378,-950.0,0.000395,21]
[309793682,1704137440388,-151.0,0.00039535,14]
[309793683,1704137440397,-152.70249,0.00039586,2]
[309793684,1704137440406,-1500.0,0.000397,2]
[309793685,1704137440417,-2477.959816,0.00039896,2]
[309793686,1704137440427,-4029.10026796,0.0003999,4]
[309793687,1704137440436,-2001.26,0.00039996,2]
[309793688,1704137440445,-2001.26,0.00039996,2]
[309793689,1704137440454,-2001.26,0.00039996,2]
[309793690,1704137440463,-2001.26,0.00039996,2]
[309793691,1704137440472,-2001.26,0.00039996,2]
[309793692,1704137440481,-2001.26,0.00039996,2]
[309793693,1704137440490,-2001.26,0.00039996,2]
[309793694,1704137440500,-2001.26,0.00039996,2]
[309793695,1704137440509,-2001.26,0.00039996,2]
[309793696,1704137440518,-16468.02002938,0.00039997,4]
[309793701,1704137441642,-5218.88434538,0.00025802,2]
[309793760,1704137444778,-14237.69801589,0.00025802,2]
[309793761,1704137444790,-983.70006597,0.00025802,2]
[309793762,1704137444949,-1654.43693966,0.00025802,2]
[309793763,1704137444959,-302.29,0.00039987,3]
[309793764,1704137444969,-247.0,0.00039997,2]
[309793765,1704137444978,-1055.77580482,0.00039997,4]
[309793784,1704137447293,-4003.11752616,0.00039997,4]
[309793891,1704138632618,-245.49702411,0.00023565,2]
[309793893,1704138632627,-196.25235172,0.00023566,2]
[309793895,1704138632637,-292.84663046,0.00023567,2]
[309793896,1704138632647,-195.03751586,0.00023567,20]
[309793945,1704138640367,-943.79443279,0.00023564,2]
[309793946,1704138640377,-851.81467386,0.00023565,2]
[309793947,1704138640386,-102.90726352,0.00023567,20]
[309793948,1704138640425,-161.96297205,0.00023567,20]
[309793949,1704138640436,-154.86062544,0.00023567,2]
[309793950,1704138640445,-208.295393,0.00023568,2]
[309793951,1704138640454,-245.44220656,0.0002453,2]
[309793952,1704138640465,-253.03689703,0.0002453,2]
[309793953,1704138640475,-154.86062544,0.0002453,2]
[309793954,1704138640484,-2494.74846271,0.0002453,2]
[309793955,1704138640498,-2284.12085474,0.0002453,2]
[309793956,1704138640507,-499.94,0.00024531,2]
[309793957,1704138640516,-4389.23964704,0.00024534,2]
[309793959,1704138640532,-868.34,0.00024534,2]
[309794032,1704138645895,-15692.81149436,0.00024534,2]
[309794038,1704138645956,-390.76136905,0.00024534,2]
[309794040,1704138645967,-612.79630013,0.00024534,2]
[309794043,1704138645979,-140.77055632,0.00024534,2]
[309794045,1704138645988,-144.96923606,0.00024538,2]
[309794056,1704138646663,-629.81913124,0.00024538,2]
[309794057,1704138646673,-3588.4984708,0.00024764,2]
[309794058,1704138646683,-4700.78891106,0.00025,2]
[309794059,1704138646693,-3000.0,0.00025532,2]
[309794060,1704138646702,-170.07739419,0.00025542,2]
[309794061,1704138646712,-17369.61951597,0.00025543,2]
[309794062,1704138646722,-166.666666,0.0002556,2]
[309794063,1704138646731,-524.67872739,0.00026884,2]
[309794064,1704138646740,-6889.15676949,0.00026885,2]
[309794065,1704138646750,-238.47463955,0.00026962,2]
[309794066,1704138646759,-500.0,0.00026962,2]
[309794067,1704138646768,-225.10339082,0.00026962,2]
[309794069,1704138646777,-395.5789652,0.00026962,2]
[309794070,1704138646787,-1624.6388276,0.00026963,2]
[309794071,1704138646796,-3131.2496151,0.00027,2]
[309794072,1704138646805,-166.666666,0.00027302,2]
[309794073,1704138646815,-200.0,0.00028089,15]
[309794076,1704138646833,-166.666666,0.00029044,2]
[309794078,1704138646845,-459.646197,0.00029886,2]
[309794080,1704138646855,-169.0,0.0003,2]
[309794082,1704138646866,-280.0,0.00030898,15]
[309794084,1704138646877,-459.646197,0.00030992,2]
[309794085,1704138646887,-150.84915085,0.00031453,30]
[309794086,1704138646896,-984.26645117,0.00032,2]
[309794087,1704138646906,-150.84915085,0.00032095,7]
[309794088,1704138646916,-459.646197,0.00032097,2]
[309794089,1704138646926,-5969.55963664,0.00032398,4]
[309794090,1704138646935,-150.84915085,0.0003275,4]
[309794091,1704138646945,-528.72,0.00032988,3]
[309794092,1704138646955,-242.8636708,0.00032998,4]
[309794093,1704138646964,-508.85975621,0.00032998,4]
[309794094,1704138646973,-198.08264524,0.00032998,4]
[309794095,1704138646982,-500.0,0.00032998,4]
[309794096,1704138646992,-500.0,0.00032998,4]
[309794097,1704138647001,-500.0,0.00032998,4]
[309794099,1704138647011,-500.0,0.00032998,4]
[309794101,1704138647020,-217.96212525,0.00032998,4]
[309794103,1704138647030,-500.0,0.00032998,4]
[309794105,1704138647043,-208.90069421,0.00032998,4]
[309794107,1704138647054,-500.0,0.00032998,4]
[309794108,1704138647063,-500.0,0.00032998,4]
[309794110,1704138647073,-492.02532703,0.00032998,4]
[309794112,1704138647081,-500.0,0.00032998,4]
[309794114,1704138647090,-500.0,0.00032998,4]
[309794116,1704138647100,-500.0,0.00032998,4]
[309794118,1704138647109,-500.0,0.00032998,4]
[309794120,1704138647119,-500.0,0.00032998,4]
[309794123,1704138647139,-500.0,0.00032998,7]
[309794125,1704138647156,-171.6842239,0.00032998,7]
[309794126,1704138647173,-2445.98,0.00032999,2]
[309794127,1704138647192,-2445.98,0.00032999,2]
[309794128,1704138647205,-2445.98,0.00032999,2]
[309794129,1704138647218,-2445.98,0.00032999,2]
[309794130,1704138647232,-2445.98,0.00032999,2]
[309794131,1704138647246,-1408.31,0.00032999,2]
[309794132,1704138647260,-406.67552066,0.00032999,7]
[309794133,1704138647273,-218.08275266,0.00032999,7]
[309794134,1704138647283,-500.0,0.00032999,7]
[309794135,1704138647296,-430.77727515,0.00032999,7]
[309794136,1704138647310,-500.0,0.00032999,7]
[309794137,1704138647324,-500.0,0.00032999,7]
[309794138,1704138647337,-500.0,0.00032999,7]
[309794139,1704138647350,-244.01899527,0.00032999,7]
[309794140,1704138647363,-500.0,0.00032999,7]
[309794141,1704138647373,-500.0,0.00032999,7]
[309794142,1704138647388,-500.0,0.00032999,7]
[309794143,1704138647400,-500.0,0.00032999,7]
[309794144,1704138647415,-30191.58741208,0.00033,2]
[309794145,1704138647441,-768.93,0.00033,2]
[309794146,1704138647458,-355.52902658,0.00033,2]
[309794147,1704138647473,-6341.37739251,0.00033,2]
[309794148,1704138647491,-719.27677296,0.00033,2]
[309794149,1704138647510,-21822.49788965,0.00033,2]
[309794150,1704138647529,-16301.76280789,0.00033,2]
[309794172,1704139531189,-154.82968734,0.00023537,2]
[309794173,1704139531212,-459.90775143,0.00023538,20]
[309794174,1704139531232,-245.44220656,0.00023538,2]
[309794175,1704139531251,-245.49702411,0.00023539,2]
[309794176,1704139531271,-499.94,0.0002354,2]
[309794177,1704139531290,-253.03689703,0.0002354,2]
[309794178,1704139531309,-479.72131892,0.00023567,2]
[309794179,1704139531328,-4700.78891106,0.00026999,2]
[309794180,1704139531347,-3067.99337017,0.00027,2]
[309794181,1704139531366,-2721.93925918,0.00027998,2]
[309794182,1704139531384,-200.0,0.00028897,15]
[309794183,1704139531404,-302.2074958,0.00029349,2]
[309794184,1704139531423,-183.858478,0.00029886,2]
[309794185,1704139531444,-200.0,0.00030796,15]
[309794186,1704139531464,-226.51777987,0.000309,2]
[309794187,1704139531484,-183.858478,0.00030992,2]
[309794188,1704139531502,-155.0,0.00032,2]
[309794189,1704139531520,-984.26645117,0.00032096,2]
[309794190,1704139531540,-183.858478,0.00032097,2]
[309794191,1704139531559,-248.04645752,0.00032338,4]
[309794192,1704139531578,-284.13,0.0003299,3]
[309794193,1704139531597,-443.62,0.0003299,3]
[309794194,1704139531615,-250.0,0.00032996,2]
[309794195,1704139531634,-11091.88764432,0.00032996,4]
[309794196,1704139531652,-19813.66298738,0.00032997,4]
[309794197,1704139531671,-475.96330131,0.00032998,2]
[309794198,1704139531690,-320.09960467,0.00032998,4]
[309794199,1704139531709,-309.67483911,0.00032998,4]
[309794200,1704139531727,-2441.87662647,0.00032998,4]
[309794201,1704139531745,-1682.80482891,0.00032998,2]
[309794202,1704139531764,-154.84515485,0.00032998,4]
[309794203,1704139531784,-849.31911096,0.00032999,4]
[309794204,1704139531802,-3398.48435467,0.00032999,4]
[309794205,1704139531820,-698.85532077,0.00032999,4]
[309794206,1704139531946,-645.03,0.00032999,2]
[309794207,1704139531966,-645.03,0.00032999,2]
[309794208,1704139531986,-645.03,0.00032999,2]
[309794209,1704139532006,-645.03,0.00032999,2]
[309794210,1704139532025,-470.17895674,0.00032999,2]
[309794211,1704139532045,-201.50526717,0.00032999,7]
[309794212,1704139532063,-287.1848501,0.00032999,4]
[309794213,1704139532083,-638.47319462,0.00032999,4]
[309794214,1704139532102,-500.0,0.00032999,4]
[309794215,1704139532122,-500.0,0.00032999,4]
[309794216,1704139532141,-631.16814424,0.00032999,4]
[309794217,1704139532161,-834.75,0.00032999,2]
[309794218,1704139532180,-30091.25244955,0.00033,2]
[309794219,1704139603122,-273.41,0.0003299,3]
[309794220,1704139603142,-252.53626205,0.00032998,4]
[309794221,1704139603161,-239.9774067,0.00032998,4]
[309794222,1704139603181,-349.958,0.00032998,4]
[309794223,1704139603205,-617.91828407,0.00032998,20]
[309794224,1704139603228,-253.20563764,0.00032998,2]
[309794225,1704139603249,-329.84245082,0.00032998,4]
[309794226,1704139603270,-986.29015714,0.00032998,2]
[309794227,1704139603291,-770.81162158,0.00032998,3]
[309794228,1704139630111,-445.41,0.0003299,3]
[309794229,1704139630132,-371.18,0.0003299,3]
[309794230,1704139630152,-5545.02760634,0.00032998,3]
[309794231,1704139630172,-245.22807456,0.00032998,4]
[309794232,1704139630192,-446.93123623,0.00032999,4]
[309794233,1704139630212,-500.0,0.00032999,4]
[309794234,1704139630231,-478.70088655,0.00032999,4]
[309794235,1704139630253,-281.0,0.00033,2]
[309794236,1704139630274,-7634.07515632,0.00033,2]
[309794237,1704139640117,-309.31,0.0003299,3]
[309794238,1704139640137,-143490.69109246,0.00033,2]
[309794239,1704139640157,-303.146195,0.00033,2]
[309794240,1704139640177,-4545.33506961,0.00033,4]
[309794241,1704139640198,-1023.89051787,0.00033,2]
[309794242,1704139640218,-686.46024055,0.00033,3]
[309794243,1704139640238,-201.81838364,0.00033,2]
[309794244,1704139640260,-282.54573708,0.00033,2]
[309794245,1704139640369,-479.72131892,0.00033,4]
[309794246,1704139640393,-183.858478,0.00033203,2]
[309794247,1704139640414,-155.0,0.0003337,2]
[309794248,1704139640435,-201.81838364,0.0003366,2]
[309794249,1704139640456,-150.84915085,0.00033701,2]
[309794250,1704139640478,-280.0,0.00033875,15]
[309794251,1704139640499,-4004.27717012,0.00034,2]
[309794252,1704139640519,-1000.0,0.00034308,7]
[309794253,1704139640539,-183.858478,0.00034309,2]
[309794254,1704139640559,-201.81838364,0.0003432,2]
[309794255,1704139640579,-155.0,0.0003474,2]
[309794256,1704139640599,-242.18206036,0.0003498,5]
[309794257,1704139640619,-2775.76683065,0.00035,4]
[309794258,1704139640640,-9304.29587217,0.00035,3]
[309794259,1704139640661,-154.82968734,0.0003501,4]
[309794260,1704139640682,-151.0,0.00035011,4]
[309794261,1704139640705,-248.04645752,0.00035278,4]
[309794262,1704139640725,-587.0,0.00035452,2]
[309794263,1704139640744,-150.0,0.00035452,2]
[309794264,1704139640766,-973.30592,0.00035616,120]
[309794265,1704139640788,-242.18206036,0.0003564,5]
[309794266,1704139640808,-154.84515485,0.00035816,4]
[309794267,1704139640828,-226.51777987,0.000359,2]
[309794268,1704139640848,-349.958,0.00035993,4]
[309794269,1704139640868,-405.7392334,0.00035993,4]
[309794270,1704139640887,-520.18547775,0.00035994,14]
[309794271,1704139640907,-25083.00378699,0.00035995,4]
[309794272,1704139640926,-154.84515485,0.00035996,2]
[309794273,1704139640946,-154.84515485,0.00035996,4]
[309794274,1704139640965,-154.84515485,0.00035996,4]
[309794275,1704139640985,-154.84515485,0.00035996,4]
[309794276,1704139641005,-154.84515485,0.00035996,4]
[309794277,1704139641024,-154.84515485,0.00035996,4]
[309794278,1704139641045,-154.84515485,0.00035996,4]
[309794279,1704139641068,-154.84515485,0.00035996,2]
[309794280,1704139641089,-3067.99337017,0.00035996,2]
[309794281,1704139641110,-617.91828407,0.00035996,20]
[309794282,1704139641132,-984.26645117,0.00035996,2]
[309794283,1704139641154,-253.03689703,0.00035996,4]
[309794284,1704139641174,-7921.34168169,0.00035997,2]
[309794285,1704139641197,-191.54195839,0.00035997,7]
[309794286,1704139641217,-500.0,0.00035997,7]
[309794287,1704139641238,-234.02566491,0.00035997,7]
[309794288,1704139641263,-2025.89489209,0.00035998,4]
[309794289,1704139641287,-2988.35569045,0.00035998,4]
[309794290,1704139641308,-470.03226476,0.00035998,4]
[309794291,1704139641328,-212.49909782,0.00035998,4]
[309794292,1704139641350,-2030.51263553,0.00035998,4]
[309794293,1704139641370,-585.58900286,0.00035998,4]
[309794294,1704139641391,-4801.01300755,0.00035998,4]
[309794295,1704139641411,-1208.40884418,0.00035998,4]
[309794296,1704139641431,-300.65316318,0.00035998,4]
[309794297,1704139641452,-155.20689925,0.00035998,4]
[309794298,1704139641477,-274.05362151,0.00035998,4]
[309794299,1704139641497,-3367.5606712,0.00035998,4]
[309794300,1704139641516,-2334.19339693,0.00035998,2]
[309794301,1704139641537,-524.56253249,0.00035998,4]
[309794302,1704139641557,-19813.66298738,0.00035998,4]
[309794303,1704139641576,-11091.88764432,0.00035998,4]
[309794304,1704139641596,-8433.38805163,0.00035999,4]
[309794305,1704139652184,-245.44220656,0.00035995,4]
[309794306,1704139652205,-5232.2194124,0.00035999,4]
[309794307,1704139652227,-3386.84267121,0.00035999,2]
[309794308,1704139652250,-592.69746746,0.00035999,2]
[309794309,1704139652272,-284.56854261,0.00035999,2]
[309794310,1704139652297,-250.0,0.00036,2]
[309794311,1704139652317,-28484.00066456,0.00036,4]
[309794312,1704139652340,-532.43073467,0.00036,2]
[309794313,1704139652366,-36232.93764053,0.00036,2]
[309794329,1704139834336,-349.958,0.00032996,4]
[309794330,1704139834346,-6315.83922792,0.00032997,3]
[309794332,1704139834365,-370.17781629,0.00032998,2]
[309794334,1704139834378,-2215.80968179,0.00032998,4]
[309794336,1704139834388,-1000.0,0.00034,7]
[309794338,1704139834397,-226.762741,0.00034362,2]
[309794339,1704139834407,-302.2074958,0.00034999,2]
[309794340,1704139834416,-183.858479,0.00035027,2]
[309794341,1704139834425,-187.0,0.00036,2]
[309794342,1704139834535,-23438.52874116,0.00036,2]
[309794343,1704139834545,-1364.439554,0.00036,2]
[309794344,1704139834554,-1364.439554,0.00036,2]
[309794345,1704139834563,-151.0,0.00036,2]
[309794346,1704139834573,-761.52370578,0.00036,2]
[309794347,1704139834582,-47196.66819926,0.00036078,2]
[309794393,1704139840530,-256.415,0.00032995,20]
[309794394,1704139840542,-361.50328407,0.00032995,20]
[309794395,1704139840551,-982.12608276,0.00036078,2]
[309794396,1704139840766,-1821.20571798,0.00036078,2]
[309794397,1704139840776,-155.0,0.0003611,2]
[309794398,1704139840785,-293.645103,0.00036195,4]
[309794399,1704139840794,-434.95615109,0.00036195,4]
[309794400,1704139840803,-282.54573709,0.000363,8]
[309794401,1704139840814,-973.72829112,0.00036628,2]
[309794402,1704139840825,-417.94666028,0.00037,7]
[309794403,1704139840834,-155.11386267,0.00037099,4]
[309794404,1704139840846,-150.0,0.00037374,2]
[309794405,1704139840856,-250.0,0.00037374,2]
[309794406,1704139840866,-299.365,0.00037374,2]
[309794408,1704139840875,-155.0,0.0003748,2]